bitfinex/quotes_SOLUSD_20251128
["timestamp","ask_amount","ask_price","bid_price","bid_amount"]
[1764327126549,0.2,142.19,142.18,9.16155802]
[1764327131938,0.9,142.19,142.18,9.16155802]
[1764327133028,0.2,142.19,142.18,9.16155802]
[1764327133345,0.7,142.29,142.22,16.308864]
[1764327133645,3.12,142.28,142.22,27.01222783]
[1764327134019,3.82,142.28,142.22,27.01222783]
[1764327134665,3.82,142.28,142.27,2.12822]
[1764327135021,3.82,142.28,142.27,9.15710873]
[1764327136942,3.82,142.28,142.25,2.12822]
[1764327137118,0.7,142.27,142.25,2.12822]
[1764327137314,0.7,142.27,142.26,7.02938282]
[1764327138347,0.7,142.27,142.25,9.15789026]
[1764327138520,3.1,142.26,142.25,9.15789026]
[1764327138726,3.1,142.26,142.25,7.02967026]
[1764327138921,3.8,142.26,142.25,7.02967026]
[1764327139530,3.1,142.27,142.25,26.7325827]
[1764327139844,3.1,142.27,142.26,2.12822]
[1764327140423,3.78,142.27,142.26,2.12822]
[1764327141042,0.68,142.27,142.26,2.12822]
[1764327141344,3.78,142.27,142.26,2.12822]
[1764327141518,3.78,142.27,142.26,9.15760282]
[1764327141725,0.68,142.28,142.26,9.15760282]
[1764327142032,3.78,142.28,142.27,2.12822]
[1764327143647,3.78,142.28,142.27,9.15710873]
[1764327144049,0.68,142.28,142.27,9.15710873]
[1764327144235,3.78,142.28,142.27,9.15710873]
[1764327146044,3.78,142.28,142.26,9.15743482]
[1764327146350,0.68,142.27,142.26,9.15743482]
[1764327146848,3.78,142.27,142.26,9.15743482]
[1764327147256,3.78,142.27,142.26,7.02921482]
[1764327147556,3.78,142.27,142.26,9.15743482]
[1764327148252,3.78,142.27,142.26,8.38590318]
[1764327150736,0.28432314,142.31,142.26,8.38590318]
[1764327150937,3.78,142.3,142.27,2.12822]
[1764327151267,3.78,142.3,142.24,7.03026597]
[1764327151439,0.68,142.29,142.25,2.12822]
[1764327152047,0.96432314,142.29,142.24,24.60619397]
[1764327152362,0.96432314,142.29,142.25,2.12822]
[1764327152566,0.68,142.28,142.26,7.02938282]
[1764327154153,0.68,142.28,142.26,9.15760282]
[1764327154445,3.1,142.28,142.27,9.15710873]
[1764327154646,9.00994492,142.32,142.27,9.15710873]
[1764327154647,0.88,142.32,142.27,9.15710873]
[1764327154848,0.88,142.32,142.27,24.60111056]
[1764327154849,3.1,142.31,142.27,24.60111056]
[1764327155032,3.1,142.31,142.28,2.12822]
[1764327155430,0.68,142.3,142.28,2.12822]
[1764327156153,0.68,142.3,142.27,26.72933056]
[1764327156332,3.1,142.29,142.27,26.72933056]
[1764327156533,0.68,142.3,142.27,26.72933056]
[1764327156855,3.78,142.29,142.27,26.72933056]
[1764327157958,3.78,142.29,142.28,2.12822]
[1764327158536,3.1,142.29,142.28,9.15661471]
[1764327158747,3.1,142.29,142.28,26.72760149]
[1764327158952,0.2,142.32,142.28,26.72760149]
[1764327159155,0.2,142.32,142.28,24.59938149]
[1764327159156,0.68,142.29,142.28,24.59938149]
[1764327160243,0.68,142.29,142.28,26.72760149]
[1764327160643,0.68,142.29,142.28,9.15661471]
[1764327163863,0.68,142.29,142.28,7.02839471]
[1764327164058,3.78,142.29,142.28,9.15661471]
[1764327168167,0.68,142.29,142.28,9.15661471]
[1764327168340,3.78,142.29,142.28,9.15661471]
[1764327168545,3.1,142.29,142.28,9.15661471]
[1764327168740,0.2,142.32,142.28,9.15661471]
[1764327169059,0.2,142.34,142.28,9.15661471]
[1764327169060,0.2,142.34,142.31,26.949964]
[1764327169241,3.1,142.37,142.33,2.12822]
[1764327169445,3.1,142.37,142.36,2.12822]
[1764327169645,3.1,142.37,142.32,27.01222783]
[1764327169852,3.82,142.37,142.36,2.12822]
[1764327170068,3.1,142.37,142.36,2.12822]
[1764327170362,3.1,142.37,142.36,9.15266506]
[1764327170566,3.82,142.37,142.36,9.15266506]
[1764327170772,3.82,142.37,142.36,2.12822]
[1764327171674,0.28432314,142.36,142.33,2.12822]
[1764327171870,1.00432314,142.36,142.33,2.12822]
[1764327172248,0.72,142.35,142.33,2.12822]
[1764327172481,0.72,142.35,142.32,2.12822]
[1764327172974,0.72,142.35,142.33,2.12822]
[1764327173158,3.1,142.34,142.33,2.12822]
[1764327173563,3.82,142.34,142.33,2.12822]
[1764327173747,0.72,142.34,142.33,2.12822]
[1764327173948,3.82,142.34,142.33,2.12822]
[1764327174681,3.82,142.34,142.33,9.15414566]
[1764327175252,3.82,142.34,142.3,33.87738121]
[1764327175253,3.82,142.34,142.31,7.02691307]
[1764327175444,0.72,142.33,142.32,2.12822]
[1764327176275,0.72,142.33,142.31,9.15513307]
[1764327177675,0.72,142.33,142.31,7.02691307]
[1764327177973,0.72,142.33,142.31,9.15513307]
[1764327178182,0.72,142.33,142.32,2.12822]
[1764327178385,3.82,142.33,142.32,2.12822]
[1764327178760,3.82,142.33,142.3,7.02720379]
[1764327178959,0.72,142.32,142.29,9.15595757]
[1764327179158,0.72,142.32,142.28,9.15640912]
[1764327179366,0.72,142.32,142.28,7.02818912]
[1764327179726,0.72,142.32,142.29,2.12822]
[1764327180975,0.72,142.32,142.28,9.15645366]
[1764327181290,0.72,142.32,142.29,2.12822]
[1764327182786,3.1,142.31,142.3,2.12822]
[1764327183189,3.1,142.31,142.3,9.15562688]
[1764327184623,3.1,142.31,142.3,26.72414409]
[1764327187812,3.1,142.31,142.3,7.02740688]
[1764327188014,3.77,142.31,142.29,2.12822]
[1764327188317,0.67,142.3,142.29,2.12822]
[1764327188516,0.67,142.3,142.28,7.02813084]
[1764327188717,0.67,142.3,142.29,3.32125305]
[1764327189099,3.1,142.3,142.29,3.32125305]
[1764327189302,3.77,142.3,142.29,3.32125305]
[1764327190022,3.77,142.3,142.29,10.34915381]
[1764327190515,3.1,142.3,142.29,10.34915381]
[1764327190706,3.76,142.3,142.29,10.34915381]
[1764327195003,3.60557619,142.35,142.29,27.91890572]
[1764327195004,0.66,142.35,142.29,27.91890572]
[1764327195205,0.66,142.35,142.32,3.32125305]
[1764327195206,3.1,142.34,142.32,3.32125305]
[1764327195801,6.42125305,142.34,142.28,16.308864]
[1764327196016,6.42125305,142.34,142.26,16.308864]
[1764327196017,12.41552111,142.33,142.26,16.308864]
[1764327196516,12.41552111,142.33,142.27,3.32125305]
[1764327197124,19.4417502,142.33,142.28,7.02839471]
[1764327197424,0.66,142.32,142.28,7.02839471]
[1764327198513,0.28432314,142.31,142.27,7.02869137]
[1764327198700,3.1,142.3,142.27,7.02869137]
[1764327198899,3.76,142.3,142.27,10.34994442]
[1764327199106,0.66,142.29,142.27,10.34994442]
[1764327201329,0.66,142.29,142.28,3.32125305]
[1764327202326,0.7,142.31,142.28,10.34964776]
[1764327202510,0.7,142.31,142.3,3.32125305]
[1764327202708,3.8,142.31,142.3,3.32125305]
[1764327204303,3.8,142.31,142.3,10.34865993]
[1764327205609,3.1,142.31,142.3,10.34865993]
[1764327205810,3.8,142.31,142.3,10.34865993]
[1764327206227,0.28432314,142.34,142.3,10.34865993]
[1764327206533,0.7,142.32,142.31,3.32125305]
[1764327206915,3.8,142.32,142.31,3.32125305]
[1764327207822,3.8,142.32,142.31,10.34816612]
[1764327208827,3.8,142.32,142.31,7.02691307]
[1764327209010,3.8,142.32,142.29,3.32125305]
[1764327209208,0.7,142.31,142.28,3.32125305]
[1764327209924,0.7,142.31,142.28,10.34964776]
[1764327210631,0.7,142.31,142.24,5.87590456]
[1764327210823,0.7,142.31,142.2,5.87590456]
[1764327210824,0.14216157,142.27,142.2,5.87590456]
[1764327211015,8.80994492,142.3,142.24,3.32125305]
[1764327211016,3.1,142.26,142.24,3.32125305]
[1764327211219,3.1,142.25,142.24,3.32125305]
[1764327211906,3.1,142.25,142.24,10.35162425]
[1764327212729,0.7,142.27,142.24,10.35162425]
[1764327212730,3.1,142.26,142.24,13.6728773]
[1764327212933,3.1,142.26,142.25,3.32125305]
[1764327213240,3.1,142.28,142.25,3.32125305]
[1764327213536,3.1,142.28,142.27,3.32125305]
[1764327214119,3.1,142.28,142.27,10.35014178]
[1764327214616,0.7,142.32,142.27,10.35014178]
[1764327214819,3.1,142.29,142.27,7.02888873]
[1764327215737,3.1,142.29,142.27,16.308864]
[1764327215936,3.1,142.29,142.28,19.63011705]
[1764327217619,3.1,142.29,142.28,26.65851176]
[1764327218319,3.1,142.31,142.28,44.22949854]
[1764327218531,3.1,142.31,142.3,3.32125305]
[1764327219034,0.7,142.36,142.31,16.308864]
[1764327219221,3.8,142.37,142.31,19.63011705]
[1764327219423,0.7,142.36,142.35,3.32125305]
[1764327219744,0.7,142.36,142.35,10.34619158]
[1764327219931,3.8,142.36,142.35,10.34619158]
[1764327221234,3.8,142.36,142.35,7.02493853]
[1764327221426,3.8,142.36,142.35,10.34619158]
[1764327221622,0.7,142.36,142.35,10.34619158]
[1764327221817,3.82,142.36,142.35,27.9085379]
[1764327223539,3.1,142.36,142.35,27.9085379]
[1764327223951,3.82,142.36,142.34,10.34655812]
[1764327224240,0.72,142.35,142.34,10.34655812]
[1764327224640,3.82,142.35,142.34,10.34655812]
[1764327225443,0.28432314,142.38,142.34,10.34655812]
[1764327225652,0.72,142.35,142.34,10.34655812]
[1764327226023,0.72,142.35,142.34,7.02530507]
[1764327226224,0.72,142.35,142.34,10.34655812]
[1764327229226,3.1,142.37,142.34,10.34655812]
[1764327229432,0.14216157,142.4,142.36,3.32125305]
[1764327229649,0.72,142.37,142.36,3.32125305]
[1764327230445,0.72,142.37,142.36,10.34569811]
[1764327230747,0.72,142.37,142.35,10.34577238]
[1764327231242,0.72,142.37,142.36,3.32125305]
[1764327231943,0.72,142.37,142.35,7.02451933]
[1764327232126,0.72,142.37,142.36,3.32125305]
[1764327232318,0.72,142.37,142.36,10.34569811]
[1764327232522,0.72,142.37,142.35,7.02478356]
[1764327232733,0.72,142.37,142.36,3.32125305]
[1764327233343,0.72,142.37,142.35,10.34603661]
[1764327233542,0.72,142.37,142.33,10.34704845]
[1764327234531,0.72,142.37,142.34,3.32125305]
[1764327236643,0.72,142.37,142.34,10.34632526]
[1764327236942,0.72,142.37,142.31,16.308864]
[1764327237126,0.28432314,142.36,142.33,3.32125305]
[1764327237327,3.1,142.35,142.33,3.32125305]
[1764327237526,3.82,142.35,142.33,3.32125305]
[1764327237726,0.72,142.34,142.33,3.32125305]
[1764327238324,0.72,142.34,142.33,10.34717871]
[1764327240635,3.82,142.35,142.33,10.34717871]
[1764327240840,1.00432314,142.37,142.34,3.32125305]
[1764327241027,3.1,142.36,142.35,3.32125305]
[1764327241227,3.82,142.36,142.35,3.32125305]
[1764327243953,3.82,142.36,142.34,10.34637506]
[1764327244138,0.72,142.35,142.34,10.34637506]
[1764327244334,0.72,142.35,142.31,17.56646788]
[1764327244537,0.72,142.35,142.33,3.32125305]
[1764327244748,0.72,142.35,142.34,3.32125305]
[1764327244947,0.72,142.35,142.33,3.32125305]
[1764327245342,1.00432314,142.35,142.32,3.32125305]
[1764327245853,0.72,142.34,142.32,3.32125305]
[1764327246230,0.72,142.34,142.33,3.32125305]
[1764327246443,3.82,142.34,142.33,3.32125305]
[1764327246851,3.82,142.34,142.33,10.34717871]
[1764327247154,0.72,142.34,142.33,10.34717871]
[1764327247335,3.1,142.34,142.33,10.34717871]
[1764327247535,0.72,142.36,142.33,27.91199287]
[1764327247856,0.72,142.36,142.33,24.59073982]
[1764327247857,3.1,142.35,142.33,24.59073982]
[1764327248365,3.82,142.35,142.33,24.59073982]
[1764327248963,3.82,142.35,142.34,10.34668511]
[1764327249156,0.72,142.37,142.34,27.91026527]
[1764327249342,3.1,142.36,142.35,3.32125305]
[1764327249757,3.82,142.36,142.35,3.32125305]
[1764327250660,3.82,142.36,142.35,2.12401632]
[1764327251063,3.82,142.36,142.35,9.14895485]
[1764327251362,3.1,142.36,142.35,26.71130117]
[1764327251559,3.1,142.36,142.35,24.58728485]
[1764327251759,3.1,142.36,142.35,26.71130117]
[1764327255271,0.68,142.38,142.35,26.71130117]
[1764327255576,3.1,142.37,142.35,24.58728485]
[1764327256656,3.1,142.37,142.36,2.12401632]
[1764327256849,0.28432314,142.4,142.36,2.12401632]
[1764327256850,8.80994492,142.41,142.36,4.24803264]
[1764327257044,0.2,142.43,142.4,2.12401632]
[1764327257266,0.2,142.43,142.42,9.14550206]
[1764327257571,0.9,142.43,142.42,9.14550206]
[1764327258260,0.2,142.43,142.42,7.02148574]
[1764327258463,0.2,142.43,142.42,9.14550206]
[1764327259660,0.9,142.43,142.42,9.14550206]
[1764327260966,0.2,142.43,142.42,9.14550206]
[1764327261175,0.9,142.43,142.42,9.14550206]
[1764327261466,0.9,142.43,142.42,2.12401632]
[1764327263376,0.9,142.43,142.42,9.14550206]
[1764327264052,4.0,142.43,142.42,9.14550206]
[1764327267050,0.2,142.43,142.42,9.14550206]
[1764327270965,0.2,142.43,142.42,25.45436606]
[1764327274761,0.2,142.43,142.42,9.14550206]
[1764327275157,0.9,142.43,142.42,7.02148574]
[1764327275378,0.9,142.43,142.42,9.14550206]
[1764327276475,0.2,142.43,142.42,9.14550206]
[1764327277484,0.9,142.43,142.42,9.14550206]
[1764327286481,0.2,142.43,142.42,9.14550206]
[1764327286685,0.92,142.43,142.42,9.14550206]
[1764327287097,0.92,142.43,142.42,7.02148574]
[1764327287300,0.92,142.43,142.42,9.14550206]
[1764327287486,0.2,142.43,142.42,9.14550206]
[1764327288595,0.92,142.43,142.41,16.308864]
[1764327288794,0.92,142.43,142.42,2.12401632]
[1764327288995,0.2,142.43,142.42,2.12401632]
[1764327289371,0.92,142.43,142.42,9.14550206]
[1764327299911,0.92,142.43,142.42,7.02148574]
[1764327300096,0.92,142.43,142.42,9.14550206]
[1764327300299,0.92,142.43,142.42,7.02148574]
[1764327300608,0.92,142.43,142.35,16.93108112]
[1764327300609,0.92,142.43,142.39,2.12401632]
[1764327300795,0.72,142.42,142.39,2.12401632]
[1764327300999,0.72,142.42,142.4,2.12401632]
[1764327301195,0.2,142.43,142.38,26.70572362]
[1764327301405,1e-08,142.43,142.42,2.12401632]
[1764327301611,0.72,142.47,142.42,25.81356648]
[1764327301916,0.72,142.48,142.45,7.02000702]
[1764327302212,0.72,142.48,142.45,24.57002457]
[1764327302510,0.72,142.48,142.46,2.12401632]
[1764327303299,0.72,142.48,142.47,2.12401632]
[1764327303692,0.72,142.48,142.47,9.14303786]
[1764327304218,0.72,142.48,142.45,2.12401632]
[1764327305013,0.72,142.48,142.46,2.12401632]
[1764327305207,0.2,142.49,142.48,16.308864]
[1764327305414,0.2,142.49,142.48,18.43288032]
[1764327305924,0.92,142.49,142.48,18.43288032]
[1764327306319,0.92,142.49,142.48,2.12401632]
[1764327310722,0.92,142.49,142.47,3.31284177]
[1764327310913,0.67,142.48,142.47,3.31284177]
[1764327311113,0.67,142.48,142.44,3.31284177]
[1764327311519,0.67,142.48,142.45,3.31284177]
[1764327312108,0.67,142.48,142.42,16.308864]
[1764327312414,0.67,142.48,142.45,3.31284177]
[1764327312619,0.67,142.48,142.42,16.308864]
[1764327312818,0.67,142.48,142.44,3.31284177]
[1764327313217,0.67,142.48,142.45,3.31284177]
[1764327313729,0.67,142.48,142.42,16.308864]
[1764327314027,0.67,142.48,142.44,3.31284177]
[1764327314710,0.67,142.48,142.42,16.308864]
[1764327314916,0.67,142.48,142.44,3.31284177]
[1764327315627,0.67,142.48,142.42,16.308864]
[1764327315834,0.67,142.48,142.44,3.31284177]
[1764327316525,0.67,142.48,142.43,3.31284177]
[1764327316832,0.67,142.48,142.44,3.31284177]
[1764327317026,3.98284177,142.48,142.42,16.308864]
[1764327317327,3.31284177,142.47,142.42,3.31284177]
[1764327317532,3.97284177,142.47,142.42,3.31284177]
[1764327317725,0.66,142.46,142.42,3.31284177]
[1764327317931,3.31284177,142.43,142.38,3.31284177]
[1764327318323,0.66,142.42,142.38,3.31284177]
[1764327318821,0.66,142.42,142.39,3.31284177]
[1764327319617,0.66,142.42,142.38,3.31284177]
[1764327320736,0.66,142.42,142.39,3.31284177]
[1764327323740,0.66,142.42,142.38,3.31284177]
[1764327324534,0.66,142.42,142.37,16.308864]
[1764327324719,3.31284177,142.41,142.36,16.308864]
[1764327324929,3.1,142.4,142.36,19.62170577]
[1764327325118,3.76,142.4,142.36,19.62170577]
[1764327325315,0.66,142.39,142.36,3.31284177]
[1764327325519,0.66,142.39,142.37,3.31284177]
[1764327326624,3.76,142.41,142.38,3.31284177]
[1764327326828,3.76,142.41,142.39,3.31284177]
[1764327327028,3.76,142.41,142.4,3.31284177]
[1764327327540,0.66,142.41,142.4,3.31284177]
[1764327328425,0.66,142.41,142.35,16.308864]
[1764327328628,0.66,142.41,142.37,3.31284177]
[1764327329139,0.94432314,142.41,142.37,3.31284177]
[1764327329345,4.25716491,142.41,142.36,3.31284177]
[1764327329533,0.66,142.4,142.36,3.31284177]
[1764327330130,0.66,142.4,142.34,16.308864]
[1764327330338,3.97284177,142.4,142.34,16.308864]
[1764327330530,3.31284177,142.38,142.3,3.59716491]
[1764327330730,3.1,142.37,142.33,3.31284177]
[1764327330947,3.1,142.37,142.31,19.62170577]
[1764327331139,0.66,142.36,142.31,19.62170577]
[1764327331350,0.66,142.36,142.34,3.31284177]
[1764327333143,0.66,142.36,142.35,3.31284177]
[1764327333741,8.80994492,142.35,142.28,0.1]
[1764327333941,4.25716491,142.34,142.28,0.1]
[1764327334135,0.66,142.33,142.28,3.41284177]
[1764327334337,0.66,142.33,142.29,3.31284177]
[1764327335332,0.66,142.33,142.28,0.1]
[1764327335532,0.66,142.33,142.29,3.31284177]
[1764327336150,3.1,142.32,142.28,0.1]
[1764327336534,0.66,142.31,142.28,3.41284177]
[1764327336932,0.66,142.31,142.28,0.1]
[1764327337128,0.66,142.31,142.28,3.41284177]
[1764327337643,0.66,142.31,142.3,3.31284177]
[1764327338746,0.66,142.31,142.28,3.41284177]
[1764327338747,0.94432314,142.31,142.28,3.41284177]
[1764327339142,0.66,142.3,142.28,3.41284177]
[1764327339731,0.66,142.34,142.29,3.31284177]
[1764327340032,3.76,142.34,142.33,3.31284177]
[1764327340729,0.66,142.34,142.28,0.1]
[1764327340934,0.71,142.33,142.31,3.31284177]
[1764327341133,0.99432314,142.33,142.32,3.31284177]
[1764327341330,0.71,142.33,142.32,3.31284177]
[1764327342140,0.99432314,142.33,142.31,3.31284177]
[1764327342644,0.71,142.32,142.31,3.31284177]
[1764327343743,0.71,142.32,142.28,0.1]
[1764327344257,0.71,142.32,142.31,3.31284177]
[1764327347641,0.71,142.32,142.28,0.1]
[1764327347843,0.71,142.32,142.31,3.31284177]
[1764327348763,3.1,142.34,142.31,3.31284177]
[1764327348948,0.71,142.33,142.28,0.1]
[1764327349962,15.22278669,142.37,142.28,0.1]
[1764327350140,3.81,142.35,142.34,3.31284177]
[1764327356551,3.81,142.35,142.33,3.31284177]
[1764327356752,3.1,142.35,142.33,3.31284177]
[1764327356947,0.71,142.34,142.33,3.31284177]
[1764327361446,0.71,142.34,142.31,3.31284177]
[1764327361770,0.71,142.34,142.32,3.31284177]
[1764327362571,0.71,142.34,142.28,0.1]
[1764327362572,0.99432314,142.34,142.28,0.1]
[1764327362758,0.99432314,142.34,142.3,3.31284177]
[1764327362947,0.71,142.33,142.3,3.31284177]
[1764327364045,3.1,142.32,142.31,3.31284177]
[1764327364450,3.81,142.32,142.31,3.31284177]
[1764327365278,3.81,142.32,142.28,0.1]
[1764327365453,3.81,142.32,142.31,3.31284177]
[1764327365976,3.1,142.32,142.31,3.31284177]
[1764327366564,3.81,142.32,142.31,3.31284177]
[1764327367466,3.81,142.32,142.28,0.1]
[1764327367667,3.81,142.32,142.31,3.31284177]
[1764327367977,0.71,142.31,142.28,0.1]
[1764327368183,3.81,142.32,142.28,0.1]
[1764327369081,3.81,142.32,142.31,3.31284177]
[1764327369379,0.28432314,142.34,142.31,3.31284177]
[1764327369582,3.81,142.33,142.32,3.31284177]
[1764327369961,3.1,142.34,142.32,3.31284177]
[1764327370162,3.81,142.34,142.33,3.31284177]
[1764327370362,3.1,142.34,142.33,3.31284177]
[1764327370761,8.95210649,142.42,142.33,3.31284177]
[1764327370975,0.69,142.37,142.36,3.31284177]
[1764327371155,0.69,142.37,142.31,3.31284177]
[1764327371359,3.1,142.36,142.35,3.31284177]
[1764327371760,3.79,142.36,142.35,3.31284177]
[1764327372668,3.79,142.36,142.35,2.12427872]
[1764327373980,3.79,142.36,142.34,2.12427872]
[1764327374182,0.68,142.35,142.3,16.308864]
[1764327374486,0.68,142.35,142.32,2.12427872]
[1764327375368,0.68,142.35,142.33,2.12427872]
[1764327375562,0.68,142.35,142.3,16.308864]
[1764327375563,0.96432314,142.35,142.3,16.308864]
[1764327375767,0.96432314,142.35,142.31,2.12427872]
[1764327375991,0.68,142.34,142.3,2.12427872]
[1764327376374,0.68,142.34,142.31,2.12427872]
[1764327376575,0.68,142.34,142.28,16.408864]
[1764327376776,0.68,142.34,142.31,2.12427872]
[1764327377787,0.68,142.34,142.28,0.1]
[1764327377975,0.28432314,142.33,142.29,2.12427872]
[1764327378176,3.1,142.32,142.29,2.12427872]
[1764327378372,3.78,142.32,142.3,2.12427872]
[1764327378691,0.68,142.31,142.3,2.12427872]
[1764327380791,0.68,142.31,142.3,9.1516856]
[1764327381091,0.68,142.31,142.3,2.12427872]
[1764327381586,3.1,142.32,142.3,9.1516856]
[1764327381776,0.68,142.31,142.28,7.12791089]
[1764327382095,0.68,142.31,142.3,2.12427872]
[1764327382880,3.78,142.31,142.3,2.12427872]
[1764327384893,3.78,142.31,142.3,9.1516856]
[1764327385084,3.78,142.31,142.3,7.02740688]
[1764327385390,3.78,142.31,142.3,9.1516856]
[1764327385886,3.78,142.31,142.3,7.02740688]
[1764327386088,3.78,142.31,142.3,9.1516856]
[1764327386297,0.28432314,142.34,142.3,9.1516856]
[1764327386592,3.1,142.31,142.3,7.02740688]
[1764327386767,3.1,142.32,142.3,7.02740688]
[1764327387090,0.68,142.33,142.29,7.02790076]
[1764327387293,3.1,142.32,142.29,24.59765267]
[1764327387473,0.68,142.33,142.31,2.12427872]
[1764327387678,3.78,142.33,142.32,2.12427872]
[1764327388787,3.78,142.33,142.29,24.59765267]
[1764327388993,3.78,142.33,142.32,2.12427872]
[1764327390169,3.78,142.33,142.31,9.15072083]
[1764327390371,0.68,142.32,142.31,9.15072083]
[1764327390681,0.68,142.32,142.31,2.12427872]
[1764327391266,0.68,142.32,142.3,2.12427872]
[1764327391475,0.68,142.32,142.29,9.15211412]
[1764327393272,0.68,142.32,142.29,7.0278354]
[1764327393473,7.99075835,142.32,142.28,0.1]
[1764327393669,7.99075835,142.32,142.28,7.12838396]
[1764327393887,0.68,142.31,142.28,0.1]
[1764327394082,0.28432314,142.3,142.28,0.1]
[1764327394282,2.80427872,142.31,142.28,0.1]
[1764327394283,3.1,142.29,142.28,0.1]
[1764327394674,3.78,142.29,142.28,0.1]
[1764327396092,13.21650262,142.29,142.28,0.1]
[1764327396275,13.21650262,142.29,142.22,23.42038785]
[1764327396276,9.09426806,142.28,142.24,2.12427872]
[1764327396474,9.77426806,142.28,142.24,2.12427872]
[1764327396693,0.68,142.27,142.24,2.12427872]
[1764327397001,0.68,142.27,142.26,2.12427872]
[1764327397188,3.78,142.27,142.26,2.12427872]
[1764327397811,3.78,142.27,142.25,2.12427872]
[1764327397980,0.68,142.26,142.25,2.12427872]
[1764327398178,0.68,142.29,142.25,2.12427872]
[1764327398383,3.1,142.28,142.24,26.8301973]
[1764327398598,3.1,142.28,142.25,0.1]
[1764327399403,0.68,142.3,142.25,0.1]
[1764327399601,3.1,142.3,142.29,9.15202511]
[1764327400499,3.77,142.3,142.29,9.15202511]
[1764327401206,3.1,142.3,142.29,2.12427872]
[1764327401409,3.77,142.3,142.29,2.12427872]
[1764327401585,3.1,142.3,142.29,2.12427872]
[1764327401790,3.77,142.3,142.29,2.12427872]
[1764327402079,0.67,142.32,142.29,9.15217948]
[1764327402283,0.67,142.32,142.31,2.12427872]
[1764327402481,3.77,142.32,142.31,2.12427872]
[1764327404093,3.77,142.32,142.3,2.12427872]
[1764327404291,0.67,142.31,142.3,2.12427872]
[1764327405290,0.67,142.31,142.3,9.1516856]
[1764327405486,0.67,142.31,142.29,9.15209126]
[1764327405906,0.95432314,142.31,142.28,2.12427872]
[1764327406186,0.28432314,142.29,142.26,2.12427872]
[1764327406394,3.1,142.28,142.26,2.12427872]
[1764327406809,3.77,142.28,142.26,2.12427872]
[1764327407816,3.77,142.28,142.26,9.15344414]
[1764327408009,3.77,142.28,142.27,2.12427872]
[1764327408010,0.67,142.28,142.27,2.12427872]
[1764327408220,3.77,142.28,142.27,2.12427872]
[1764327409121,3.77,142.28,142.26,2.12427872]
[1764327409324,3.77,142.28,142.27,2.12427872]
[1764327410206,3.77,142.28,142.26,2.12427872]
[1764327410413,0.67,142.27,142.26,2.12427872]
[1764327411496,0.67,142.27,142.26,9.15366154]
[1764327411921,0.67,142.27,142.26,7.34802463]
[1764327412118,0.67,142.27,142.26,2.12427872]
[1764327415630,0.67,142.27,142.26,9.15366154]
[1764327415920,3.77,142.27,142.26,7.02938282]
[1764327416220,3.77,142.27,142.26,9.15366154]
[1764327418396,3.77,142.27,142.25,7.0296755]
[1764327418597,0.67,142.26,142.25,7.0296755]
[1764327419029,0.67,142.26,142.25,9.15395422]
[1764327419609,3.1,142.27,142.25,9.15395422]
[1764327419826,3.77,142.27,142.26,2.12427872]
[1764327420022,3.77,142.27,142.25,7.0296755]
[1764327420216,3.1,142.27,142.26,2.12427872]
[1764327420925,3.1,142.29,142.25,24.60436794]
[1764327421119,0.67,142.28,142.27,2.12427872]
[1764327421323,0.67,142.28,142.25,7.0296755]
[1764327421503,0.67,142.28,142.24,18.43314272]
[1764327421705,0.67,142.28,142.24,9.1545815]
[1764327423313,0.67,142.28,142.25,2.12427872]